bitfinex-derivatives/quotes_BTCF0:USTF0_20241203
["timestamp","ask_amount","ask_price","bid_price","bid_amount"]
[1733255640563,0.06036367,95407.0,95406.0,0.003]
[1733255640955,0.052395,95405.0,95393.0,0.03437233]
[1733255641463,0.05936567,95405.0,95393.0,0.03437233]
[1733255642461,0.06036567,95405.0,95404.0,0.00509181]
[1733255642959,0.17316799,95405.0,95404.0,0.00509181]
[1733255643162,0.53396799,95405.0,95393.0,0.0328]
[1733255643364,0.052406,95385.0,95384.0,0.0026]
[1733255643565,0.052406,95385.0,95378.0,0.0324]
[1733255643566,0.052409,95379.0,95378.0,0.0324]
[1733255643861,0.052409,95379.0,95378.0,0.06222773]
[1733255644365,0.14465067,95385.0,95378.0,0.06222773]
[1733255644566,0.05937767,95382.0,95378.0,0.06222773]
[1733255644867,0.052408,95381.0,95378.0,0.06222773]
[1733255645361,0.052409,95379.0,95378.0,0.06222773]
[1733255645568,0.05937967,95379.0,95378.0,0.06222773]
[1733255646654,0.06037967,95379.0,95378.0,0.06222773]
[1733255646864,0.06137967,95379.0,95378.0,0.06522773]
[1733255647764,0.06037967,95379.0,95378.0,0.06222773]
[1733255647967,0.06037967,95379.0,95378.0,0.06522773]
[1733255648164,0.06037967,95379.0,95378.0,1.56522773]
[1733255648671,0.20097967,95379.0,95378.0,1.5354]
[1733255648866,0.20197967,95379.0,95378.0,0.0354]
[1733255650265,0.20208868,95379.0,95378.0,0.0354]
[1733255650462,0.20208868,95379.0,95378.0,0.003]
[1733255650463,0.23187398,95379.0,95378.0,0.003]
[1733255651466,0.23087398,95379.0,95378.0,0.003]
[1733255651662,0.23187398,95379.0,95378.0,0.003]
[1733255655363,0.09027398,95379.0,95378.0,0.003]
[1733255655563,0.14967968,95379.0,95378.0,0.003]
[1733255655962,0.00807968,95379.0,95378.0,0.003]
[1733255656269,0.1416,95382.0,95378.0,0.03348431]
[1733255656472,0.1416,95383.0,95379.0,0.0329]
[1733255656672,0.1416,95385.0,95381.0,4e-05]
[1733255656876,0.39768,95393.0,95384.0,0.3608]
[1733255657063,0.3966,95393.0,95392.0,0.413202]
[1733255657368,0.14170997,95393.0,95392.0,0.413242]
[1733255658070,0.00010997,95393.0,95392.0,0.413242]
[1733255658267,0.00110997,95393.0,95392.0,0.413242]
[1733255658473,0.052395,95406.0,95392.0,0.36084]
[1733255658773,0.3976,95410.0,95392.0,0.36084]
[1733255658774,0.1416,95408.0,95407.0,0.052393]
[1733255658965,0.193993,95408.0,95407.0,0.052393]
[1733255659574,0.193993,95408.0,95407.0,0.052433]
[1733255659970,0.200993,95408.0,95407.0,0.052433]
[1733255660568,0.204993,95408.0,95407.0,0.052433]
[1733255661375,0.204993,95408.0,95407.0,0.02973045]
[1733255661680,0.197993,95408.0,95407.0,4e-05]
[1733255661865,0.204993,95408.0,95407.0,4e-05]
[1733255668487,0.1526,95408.0,95407.0,4e-05]
[1733255668878,0.204993,95408.0,95407.0,4e-05]
[1733255670787,0.063393,95408.0,95407.0,4e-05]
[1733255671088,0.204993,95408.0,95407.0,4e-05]
[1733255672086,0.063393,95408.0,95407.0,4e-05]
[1733255672293,0.204953,95408.0,95407.0,4e-05]
[1733255674992,0.15256,95408.0,95407.0,0.052433]
[1733255675491,0.15256,95408.0,95407.0,4e-05]
[1733255675492,0.204953,95408.0,95407.0,4e-05]
[1733255676995,0.15256,95408.0,95407.0,4e-05]
[1733255677296,0.15256,95408.0,95407.0,0.052433]
[1733255677502,0.204953,95408.0,95407.0,0.052433]
[1733255677898,0.15256,95408.0,95407.0,0.052433]
[1733255678099,0.15256,95408.0,95407.0,4e-05]
[1733255678601,0.063393,95408.0,95407.0,4e-05]
[1733255678904,0.203873,95408.0,95407.0,4e-05]
[1733255686299,0.31666748,95408.0,95407.0,4e-05]
[1733255686806,0.203873,95408.0,95407.0,4e-05]
[1733255687202,0.31666743,95408.0,95407.0,4e-05]
[1733255687402,0.203873,95408.0,95407.0,4e-05]
[1733255687603,0.31666825,95408.0,95407.0,4e-05]
[1733255688996,0.203873,95408.0,95407.0,4e-05]
[1733255693806,0.196873,95408.0,95407.0,4e-05]
[1733255694109,0.203873,95408.0,95407.0,4e-05]
[1733255697608,0.31666375,95408.0,95407.0,4e-05]
[1733255700212,0.31666375,95408.0,95407.0,4e-05]
[1733255703315,0.17618375,95408.0,95407.0,4e-05]
[1733255703516,0.31666375,95408.0,95407.0,4e-05]
[1733255705318,0.17618375,95408.0,95407.0,4e-05]
[1733255705517,0.31666375,95408.0,95407.0,4e-05]
[1733255705714,0.203873,95408.0,95407.0,4e-05]
[1733255705920,0.1237911,95408.0,95407.0,4e-05]
[1733255706219,0.2642711,95408.0,95407.0,0.052433]
[1733255706432,0.15148,95408.0,95407.0,0.052433]
[1733255706619,0.15148,95408.0,95407.0,1.552433]
[1733255707317,0.063393,95408.0,95407.0,0.052433]
[1733255707534,0.203873,95408.0,95407.0,0.052433]
[1733255707719,0.203873,95408.0,95407.0,4e-05]
[1733255709715,0.063393,95408.0,95407.0,4e-05]
[1733255709926,0.200913,95408.0,95407.0,4e-05]
[1733255710426,0.31370064,95408.0,95396.0,0.0026]
[1733255710631,0.31370064,95408.0,95389.0,0.0026]
[1733255710632,0.052403,95390.0,95389.0,0.0026]
[1733255710827,0.052404,95389.0,95384.0,0.36144]
[1733255711124,0.052404,95389.0,95384.0,0.3608]
[1733255711520,0.13752,95390.0,95384.0,0.3608]
[1733255711822,0.052404,95388.0,95384.0,0.3608]
[1733255712431,0.13752,95390.0,95384.0,0.3608]
[1733255712622,0.052405,95387.0,95384.0,0.3608]
[1733255712828,0.052406,95385.0,95384.0,0.3608]
[1733255714137,0.052406,95385.0,95384.0,0.3628]
[1733255715729,0.053406,95385.0,95384.0,0.3648]
[1733255716340,0.053406,95385.0,95384.0,1.8648]
[1733255717132,0.001,95385.0,95384.0,1.917206]
[1733255717938,0.053406,95385.0,95384.0,1.917206]
[1733255718333,0.053406,95385.0,95384.0,1.8648]
[1733255723238,0.001,95385.0,95384.0,1.917206]
[1733255724038,0.053406,95385.0,95384.0,1.917206]
[1733255725945,0.13856,95385.0,95384.0,1.917206]
[1733255728360,0.13856,95385.0,95384.0,0.417206]
[1733255729173,0.190966,95385.0,95384.0,0.417206]
[1733255731060,0.190966,95385.0,95384.0,0.3648]
[1733255731959,0.001,95385.0,95384.0,0.417206]
[1733255732161,0.1127955,95399.0,95398.0,0.052398]
[1733255732475,0.13756,95402.0,95398.0,0.413238]
[1733255732766,0.13756,95402.0,95401.0,0.052437]
[1733255732963,0.189956,95402.0,95401.0,0.052437]
[1733255733463,0.052396,95402.0,95401.0,0.052437]
[1733255734460,0.055396,95402.0,95401.0,0.052437]
[1733255734665,0.057396,95402.0,95401.0,0.052437]
[1733255735266,0.059396,95402.0,95401.0,0.052437]
[1733255737767,0.059396,95402.0,95401.0,0.08215263]
[1733255740574,0.007,95402.0,95401.0,0.08215263]
[1733255742173,0.059396,95402.0,95401.0,0.08215263]
[1733255743169,0.007,95402.0,95401.0,0.08215263]
[1733255743969,0.059396,95402.0,95401.0,0.08215263]
[1733255751683,0.007,95402.0,95401.0,0.08215263]
[1733255752980,0.007,95402.0,95401.0,1.58215263]
[1733255762692,0.0978,95414.0,95413.0,0.05239]
[1733255762889,0.0978,95414.0,95413.0,0.41319]
[1733255763088,0.0655,95414.0,95413.0,0.41323]
[1733255763389,0.0655,95414.0,95413.0,1.91323]
[1733255764502,0.0745,95414.0,95413.0,1.91423]
[1733255765590,0.0745,95414.0,95413.0,1.91523]
[1733255765800,0.0795,95414.0,95413.0,1.91523]
[1733255766099,0.0705,95414.0,95413.0,1.91823]
[1733255766587,0.0655,95414.0,95413.0,1.91923]
[1733255767998,0.0655,95414.0,95413.0,1.94900761]
[1733255773298,0.0321,95426.0,95425.0,0.052384]
[1733255773503,0.052375,95442.0,95441.0,0.052374]
[1733255773693,0.3964,95457.0,95441.0,0.052374]
[1733255773694,0.052372,95452.0,95451.0,0.052369]
[1733255774002,0.052372,95452.0,95451.0,0.052409]
[1733255774296,0.189772,95452.0,95451.0,4e-05]
[1733255775193,0.198772,95452.0,95451.0,0.00104]
[1733255775394,0.198772,95452.0,95451.0,0.053409]
[1733255775593,0.1554,95452.0,95451.0,0.415209]
[1733255776698,0.018,95452.0,95451.0,0.415209]
[1733255778401,0.0955,95468.0,95467.0,0.052361]
[1733255778696,0.0955,95468.0,95467.0,0.774001]
[1733255780197,0.0955,95468.0,95467.0,0.80358029]
[1733255780904,0.1005,95468.0,95467.0,0.80358029]
[1733255781298,0.1095,95468.0,95467.0,0.80458029]
[1733255784898,0.0751694,95468.0,95467.0,0.80458029]
[1733255787309,0.1275294,95468.0,95467.0,0.80458029]
[1733255789113,0.0751694,95468.0,95467.0,0.80458029]
[1733255791807,0.0751694,95468.0,95467.0,0.39141929]
[1733255791808,0.1275294,95468.0,95467.0,0.39141929]
[1733255792009,0.2124894,95468.0,95465.0,0.3608]
[1733255792211,0.052361,95466.0,95452.0,0.3608]
[1733255792407,0.052361,95466.0,95448.0,0.052371]
[1733255792408,0.11596037,95462.0,95448.0,0.052371]
[1733255792600,0.3608,95461.0,95443.0,0.3608]
[1733255792906,0.052372,95446.0,95444.0,1.50157148]
[1733255793108,0.052373,95445.0,95444.0,0.00157148]
[1733255793710,0.13732,95447.0,95444.0,0.00157148]
[1733255793915,0.13732,95447.0,95446.0,0.052372]
[1733255794109,0.13732,95447.0,95446.0,0.052412]
[1733255794809,0.13732,95447.0,95446.0,4e-05]
[1733255795000,0.189692,95447.0,95446.0,4e-05]
[1733255796104,0.190692,95447.0,95446.0,4e-05]
[1733255796304,0.191692,95447.0,95446.0,4e-05]
[1733255798206,0.13932,95447.0,95446.0,4e-05]
[1733255798608,0.002,95447.0,95446.0,4e-05]
[1733255798812,0.13924,95447.0,95446.0,0.052412]
[1733255801312,0.002,95447.0,95446.0,0.052412]
[1733255801918,0.002,95447.0,95446.0,1.552412]
[1733255803013,0.001,95447.0,95446.0,1.552412]
[1733255803714,0.052367,95456.0,95446.0,1.50104]
[1733255803917,0.052367,95456.0,95455.0,0.052367]
[1733255804108,0.052367,95456.0,95455.0,0.052407]
[1733255805416,0.056367,95456.0,95455.0,0.052407]
[1733255806715,0.058367,95456.0,95455.0,0.052407]
[1733255807918,0.006,95456.0,95455.0,0.08194204]
[1733255810321,0.006,95456.0,95455.0,1.58194204]
[1733255813014,0.006,95456.0,95455.0,0.08194204]
[1733255813725,0.006,95456.0,95455.0,0.02957504]
[1733255813926,0.058367,95456.0,95455.0,0.08194204]
[1733255814914,0.006,95456.0,95455.0,0.08194204]
[1733255817029,0.058367,95456.0,95455.0,0.08194204]
[1733255821638,0.006,95456.0,95455.0,0.08194204]
[1733255822626,0.058367,95456.0,95455.0,0.02957504]
[1733255823023,0.195607,95456.0,95455.0,4e-05]
[1733255824028,0.30833276,95456.0,95455.0,4e-05]
[1733255824732,0.30833276,95456.0,95455.0,0.052407]
[1733255825428,0.25595901,95456.0,95455.0,0.052407]
[1733255825732,0.14324,95456.0,95455.0,0.052407]
[1733255830642,0.195607,95456.0,95455.0,0.052407]
[1733255830943,0.195607,95456.0,95455.0,4e-05]
[1733255841130,0.30833503,95456.0,95455.0,4e-05]
[1733255843441,0.195607,95456.0,95455.0,4e-05]
[1733255844343,0.058367,95456.0,95455.0,4e-05]
[1733255844539,0.195567,95456.0,95455.0,4e-05]
[1733255845147,0.058367,95456.0,95455.0,4e-05]
[1733255845343,0.195567,95456.0,95455.0,4e-05]
[1733255845538,0.30828512,95456.0,95455.0,4e-05]
[1733255846145,0.30828512,95456.0,95455.0,0.02983521]
[1733255846342,0.30828512,95456.0,95455.0,4e-05]
[1733255848151,0.195567,95456.0,95455.0,4e-05]
[1733255850353,0.001,95470.0,95455.0,0.08228549]
[1733255850649,0.1372,95477.0,95476.0,0.05235]
[1733255850852,0.1372,95487.0,95475.0,0.3608]
[1733255851149,0.03087517,95492.0,95491.0,0.052342]
[1733255851351,0.03087517,95492.0,95491.0,0.05247299]
[1733255851543,0.03087517,95492.0,95491.0,0.05251299]
[1733255851743,0.05234,95495.0,95494.0,0.052339]
[1733255852255,0.1,95500.0,95497.0,0.052339]
[1733255852550,0.052338,95498.0,95497.0,0.052339]
[1733255853348,0.052338,95498.0,95497.0,0.053339]
[1733255853550,0.052338,95498.0,95497.0,0.054339]
[1733255853746,0.115,95500.0,95497.0,0.054339]
[1733255853747,0.115,95500.0,95499.0,0.052338]
[1733255853948,0.107,95500.0,95499.0,0.413138]
[1733255854351,0.001,95518.0,95499.0,0.498]
[1733255854553,0.052328,95516.0,95515.0,0.3608]
[1733255855956,0.059328,95516.0,95515.0,0.3618]
[1733255856257,0.067328,95516.0,95515.0,0.3628]
[1733255857650,0.067328,95516.0,95515.0,0.39312048]
[1733255859449,0.067328,95516.0,95515.0,0.44544948]
[1733255862158,0.052328,95516.0,95515.0,0.44344948]
[1733255862354,0.056328,95516.0,95515.0,0.44344948]
[1733255862554,0.004,95516.0,95515.0,0.44344948]
[1733255862857,0.004,95516.0,95515.0,0.80424948]
[1733255863058,0.004,95516.0,95515.0,0.83694948]
[1733255863762,0.16838,95532.0,95515.0,0.83694948]
[1733255863955,0.2207,95532.0,95531.0,0.3608]
[1733255864262,0.2207,95532.0,95531.0,0.36084]
[1733255864849,0.2247,95532.0,95531.0,0.36084]
[1733255865252,0.2207,95532.0,95531.0,0.36084]
[1733255865454,0.2257,95532.0,95531.0,0.36184]
[1733255866765,0.1944,95532.0,95531.0,0.36184]
[1733255867659,0.005,95532.0,95531.0,0.41416]
[1733255867964,0.005,95532.0,95531.0,0.4438792]
[1733255869353,0.005,95532.0,95531.0,0.8046792]
[1733255875662,0.05732,95532.0,95531.0,0.8046792]
[1733255876557,0.005,95532.0,95531.0,0.8046792]
[1733255877559,0.05732,95532.0,95531.0,0.8046792]
[1733255877759,0.005,95532.0,95531.0,0.8046792]
[1733255877955,0.42778,95552.0,95531.0,0.8046792]
[1733255877956,0.0317,95552.0,95531.0,0.8046792]
[1733255878263,0.052314,95546.0,95545.0,0.05231]
[1733255878469,0.052314,95546.0,95545.0,0.41311]
[1733255880469,0.05231,95550.0,95549.0,0.052309]
[1733255881062,0.052309,95551.0,95545.0,0.413112]
[1733255881367,0.052312,95547.0,95546.0,0.052312]
[1733255883064,0.0317,95552.0,95545.0,0.3608]
[1733255883268,0.0317,95552.0,95549.0,0.05231]
[1733255883571,0.05231,95550.0,95549.0,0.05231]
[1733255889578,0.0317,95552.0,95545.0,0.39101483]
[1733255889870,0.0317,95552.0,95549.0,0.05231]
[1733255889871,0.05231,95550.0,95549.0,0.05231]
[1733255890076,0.0317,95552.0,95551.0,0.052309]
[1733255890475,0.0317,95552.0,95551.0,0.052349]
[1733255891372,0.084009,95552.0,95551.0,0.052349]
[1733255891562,0.084009,95552.0,95551.0,0.00104]
[1733255904275,0.001,95561.0,95551.0,0.00104]
[1733255904576,0.052299,95571.0,95567.0,0.0523]
[1733255904880,0.052299,95571.0,95570.0,0.36084]
[1733255905079,0.052299,95571.0,95570.0,4e-05]
[1733255906580,0.413094,95580.0,95579.0,0.052294]
[1733255906776,0.13688,95584.0,95571.0,0.064]
[1733255906984,0.13688,95584.0,95579.0,4e-05]
[1733255907179,0.13688,95584.0,95576.0,0.052295]
[1733255907379,0.052294,95580.0,95576.0,0.3608]
[1733255907578,0.052294,95580.0,95579.0,0.052294]
[1733255908179,0.052294,95580.0,95579.0,0.053294]
[1733255908383,0.052294,95580.0,95579.0,0.054294]
[1733255908581,0.052291,95584.0,95581.0,0.052292]
[1733255908776,0.13688,95585.0,95582.0,0.052292]
[1733255908777,0.052292,95583.0,95582.0,0.052292]
[1733255909784,0.36188,95592.0,95581.0,0.001]
[1733255909986,0.36188,95592.0,95584.0,0.3608]
[1733255909987,0.24944954,95591.0,95584.0,0.3608]
[1733255910285,0.05229,95588.0,95587.0,0.052289]
[1733255910783,0.25284037,95594.0,95584.0,0.3608]
[1733255910784,0.052291,95585.0,95584.0,0.3608]
[1733255910984,0.052291,95585.0,95581.0,0.001]
[1733255910985,0.052292,95582.0,95581.0,0.001]
[1733255911281,0.052295,95577.0,95569.0,0.0131]
[1733255911482,0.052295,95577.0,95567.0,0.0837]
[1733255911483,0.052295,95577.0,95567.0,0.0314]
[1733255911683,0.052295,95577.0,95567.0,0.0837]
[1733255911883,0.052295,95577.0,95568.0,0.0523]
[1733255912087,0.052295,95577.0,95567.0,0.0314]
[1733255912582,0.052295,95577.0,95571.0,0.0318]
[1733255913188,0.49768,95582.0,95571.0,0.0318]
[1733255913390,0.052298,95571.0,95570.0,0.02094003]
[1733255913579,0.549978,95571.0,95570.0,0.02094003]
[1733255913782,0.549978,95571.0,95557.0,0.0131]
[1733255913783,0.052304,95561.0,95557.0,0.0131]
[1733255914086,0.052304,95561.0,95556.0,0.3608]
[1733255914087,0.189184,95561.0,95559.0,0.02950706]
[1733255914383,0.189184,95561.0,95556.0,0.3608]
[1733255914384,0.30177926,95561.0,95556.0,0.3608]
[1733255915078,0.30177926,95561.0,95560.0,0.00208064]
[1733255915281,0.30177926,95561.0,95560.0,0.00608064]
[1733255915484,0.189184,95561.0,95560.0,0.00608064]
[1733255915682,0.189184,95561.0,95560.0,0.00208064]
[1733255915884,0.189184,95561.0,95560.0,8.064e-05]
[1733255918188,0.052306,95557.0,95556.0,0.3608]
[1733255919584,0.052309,95551.0,95550.0,0.00156969]
[1733255919787,0.189109,95551.0,95550.0,0.00156969]
[1733255920387,0.052313,95544.0,95543.0,0.03051078]
[1733255920684,0.052314,95543.0,95542.0,0.3608]
[1733255920889,0.189114,95543.0,95542.0,0.39049833]
[1733255921682,0.189114,95543.0,95542.0,0.39149833]
[1733255922589,0.549914,95543.0,95542.0,0.001]
[1733255923687,0.052315,95541.0,95540.0,8.141e-05]
[1733255924786,0.00104001,95543.0,95542.0,0.052314]
[1733255924980,0.1368,95544.0,95542.0,0.3608]
[1733255925186,0.052314,95543.0,95542.0,0.36084]
[1733255925587,0.052314,95543.0,95542.0,4e-05]
[1733255925984,0.189114,95543.0,95542.0,4e-05]
[1733255926189,0.549914,95543.0,95542.0,4e-05]
[1733255927194,0.189114,95543.0,95542.0,4e-05]
[1733255927496,0.1368,95543.0,95542.0,0.052354]
[1733255927790,0.189114,95543.0,95542.0,4e-05]
[1733255931780,0.189114,95543.0,95542.0,0.413154]
[1733255932195,0.189114,95543.0,95542.0,0.36084]
[1733255937594,0.189114,95543.0,95542.0,4e-05]
[1733255937795,0.052314,95543.0,95542.0,4e-05]
[1733255937994,0.189114,95543.0,95542.0,4e-05]
[1733255938699,0.549914,95543.0,95542.0,4e-05]
[1733255941397,0.549914,95543.0,95542.0,4e-05]
[1733255946600,0.4976,95543.0,95530.0,0.0339]
[1733255946802,0.4976,95543.0,95523.0,0.3713]
[1733255946803,0.3608,95534.0,95523.0,0.3608]
[1733255947098,0.052324,95524.0,95523.0,0.3608]
[1733255947289,0.189124,95524.0,95523.0,0.3608]
[1733255948104,0.189124,95524.0,95523.0,0.3688]
[1733255948894,0.189124,95524.0,95523.0,0.3728]
[1733255954106,0.30176399,95524.0,95523.0,0.3728]
[1733255955295,0.30176399,95524.0,95523.0,0.012]
[1733255955496,0.189124,95524.0,95523.0,0.012]
[1733255956000,0.3017717,95524.0,95523.0,0.012]
[1733255956201,0.052331,95511.0,95510.0,0.00157041]
[1733255956407,0.189051,95511.0,95510.0,0.00157041]
[1733255957203,0.30170417,95511.0,95510.0,0.00157041]
[1733255957907,0.30170417,95511.0,95510.0,0.01857041]
[1733255958206,0.30170417,95511.0,95510.0,0.00957041]
[1733255958399,0.30170417,95511.0,95510.0,0.01557041]
[1733255958703,0.30170417,95511.0,95510.0,0.01057041]
[1733255958908,0.052331,95511.0,95510.0,0.01057041]
[1733255959211,0.189051,95511.0,95510.0,0.009]
[1733255963104,0.189051,95511.0,95510.0,0.3698]
[1733255964000,0.13672,95511.0,95510.0,0.3698]
[1733255965604,0.189051,95511.0,95510.0,0.3698]
[1733255967509,0.189051,95511.0,95510.0,0.400664]
[1733255968814,0.13672,95511.0,95510.0,0.400664]
[1733255969525,0.189051,95511.0,95510.0,0.400664]
[1733255970009,0.189051,95511.0,95510.0,0.3698]
[1733255972909,0.189051,95511.0,95510.0,0.009]
[1733255973613,0.13672,95511.0,95510.0,0.3698]
[1733255974315,0.13672,95511.0,95510.0,0.422132]
[1733255974524,0.13672,95511.0,95510.0,0.3698]
[1733255975017,0.052331,95513.0,95510.0,0.3698]
[1733255975314,0.3939,95523.0,95510.0,0.3698]
[1733255975315,0.189091,95512.0,95510.0,0.3698]
[1733255975519,0.189091,95511.0,95510.0,0.3698]
[1733255976123,0.189091,95511.0,95510.0,0.3688]
[1733255976806,0.189091,95511.0,95510.0,0.3668]
[1733255977012,0.189091,95511.0,95510.0,0.3688]
[1733255977920,0.189091,95511.0,95510.0,0.39809674]
[1733255978117,0.052331,95511.0,95510.0,0.39809674]
[1733255978322,0.13676,95511.0,95510.0,0.39809674]
[1733255978519,0.052328,95518.0,95510.0,0.42979674]
[1733255978726,0.03414001,95523.0,95511.0,0.3912]
[1733255978727,0.13676,95517.0,95511.0,0.3912]
[1733255979019,0.189088,95517.0,95515.0,0.052329]
[1733255979418,0.13676,95516.0,95515.0,0.052329]
[1733255980512,0.052328,95516.0,95515.0,0.053329]
[1733255980712,0.188968,95516.0,95515.0,0.053329]
[1733255981014,0.188968,95516.0,95515.0,0.001]
[1733255981720,0.188968,95516.0,95515.0,0.003]
[1733255983518,0.052328,95516.0,95515.0,0.003]
[1733255983724,0.188968,95516.0,95515.0,0.003]
[1733255993525,0.13664,95516.0,95515.0,0.055329]
[1733255994022,0.188968,95516.0,95515.0,0.055329]
[1733255994213,0.188968,95516.0,95515.0,0.003]
[1733255996226,0.13664,95516.0,95515.0,0.003]
[1733255996625,0.13664,95516.0,95515.0,0.055329]
[1733255997628,0.188968,95516.0,95515.0,0.055329]
[1733255998031,0.188968,95516.0,95515.0,0.003]
[1733255999223,0.188968,95516.0,95515.0,0.055329]
[1733256000230,0.188968,95516.0,95515.0,0.003]
[1733256002831,0.30161503,95516.0,95515.0,0.003]
[1733256003139,0.16497503,95516.0,95515.0,0.003]
[1733256003331,0.13664,95516.0,95515.0,0.003]
[1733256003531,0.30161503,95516.0,95515.0,0.003]
[1733256004637,0.24928703,95516.0,95515.0,0.055329]
[1733256004942,0.02955338,95528.0,95515.0,0.055329]
[1733256005129,0.39864,95544.0,95515.0,0.055329]
[1733256005130,0.13664,95537.0,95527.0,0.3608]
[1733256005330,0.11263906,95536.0,95527.0,0.36084]
[1733256005534,0.052322,95528.0,95527.0,4e-05]
[1733256006935,0.3608,95534.0,95527.0,4e-05]
[1733256007138,0.05232,95531.0,95527.0,4e-05]
[1733256007439,0.002,95528.0,95527.0,4e-05]
[1733256007741,0.058322,95528.0,95527.0,4e-05]
[1733256008036,0.056322,95528.0,95527.0,4e-05]
[1733256008339,0.30160597,95528.0,95527.0,4e-05]
[1733256008835,0.004,95531.0,95527.0,0.36084]
[1733256009026,0.004,95531.0,95530.0,0.052321]
[1733256010039,0.004,95531.0,95527.0,0.39136871]
[1733256010040,0.13664,95542.0,95541.0,0.052315]
[1733256010237,0.13664,95542.0,95541.0,0.413115]
[1733256010443,0.13664,95542.0,95541.0,4e-05]
[1733256010444,0.188954,95542.0,95541.0,4e-05]
[1733256011043,0.66238023,95542.0,95541.0,4e-05]
[1733256011337,0.66238023,95542.0,95527.0,4e-05]
[1733256011338,0.052322,95528.0,95527.0,4e-05]
[1733256011538,0.549642,95528.0,95527.0,4e-05]
[1733256011745,0.413122,95528.0,95527.0,4e-05]
[1733256011944,0.549642,95528.0,95527.0,4e-05]
[1733256012439,0.549642,95528.0,95510.0,0.0105]
[1733256012440,0.052331,95511.0,95510.0,0.0105]
[1733256012631,0.052331,95511.0,95509.0,0.00010052]
[1733256012632,0.13652,95511.0,95509.0,0.00010052]
[1733256012838,0.052332,95510.0,95509.0,0.00010052]
[1733256013939,0.052332,95510.0,95509.0,0.00610052]
[1733256014341,0.052332,95510.0,95509.0,0.00010052]
[1733256014940,0.13652,95511.0,95509.0,0.00010052]
[1733256015147,0.11575133,95520.0,95509.0,0.00010052]
[1733256015440,0.052329,95515.0,95510.0,4e-05]
[1733256015645,0.13652,95514.0,95510.0,4e-05]
[1733256015839,0.052329,95515.0,95510.0,4e-05]
[1733256016040,0.13652,95514.0,95510.0,0.052372]
[1733256016842,0.13752,95514.0,95513.0,0.05233]
[1733256017032,0.13752,95514.0,95510.0,4e-05]
[1733256017639,0.052331,95511.0,95510.0,4e-05]
[1733256019444,0.052331,95511.0,95509.0,0.00010052]
[1733256019445,0.0001262,95510.0,95509.0,0.00010052]
[1733256019641,0.0001262,95510.0,95492.0,0.0026]
[1733256019642,0.0854582,95510.0,95492.0,0.0026]
[1733256019838,0.0854582,95510.0,95489.0,0.3713]
[1733256019839,0.052339,95496.0,95489.0,0.3608]
[1733256020035,0.11575133,95505.0,95495.0,0.05234]
[1733256020036,0.052335,95504.0,95495.0,0.05234]
[1733256020339,0.0331262,95510.0,95503.0,4e-05]
[1733256020340,0.0001262,95510.0,95503.0,4e-05]
[1733256020536,0.0001262,95510.0,95509.0,0.413132]
[1733256020840,0.0001262,95510.0,95509.0,0.41329615]
[1733256021142,0.0001262,95510.0,95509.0,1.91329615]
[1733256021536,0.13652,95519.0,95509.0,1.91329615]
[1733256021537,0.13652,95519.0,95518.0,0.052327]
[1733256021740,0.13652,95519.0,95518.0,0.413127]
[1733256022642,0.00013315,95519.0,95518.0,0.413167]
[1733256022840,0.00013315,95519.0,95518.0,0.414167]
[1733256023640,0.00013315,95519.0,95518.0,0.413167]
[1733256023945,0.00013315,95519.0,95518.0,0.414167]
[1733256024141,0.00013315,95519.0,95518.0,0.415167]
[1733256025436,0.05246015,95519.0,95518.0,0.36184]
[1733256025840,0.05246015,95519.0,95518.0,0.36284]
[1733256026242,0.05246015,95519.0,95518.0,0.36184]
[1733256027146,0.00013315,95519.0,95518.0,0.36184]
[1733256027346,0.00013315,95519.0,95518.0,0.414167]
[1733256028452,0.00013315,95519.0,95518.0,0.413167]
[1733256029154,0.00113315,95519.0,95518.0,0.413167]
[1733256032151,0.00013315,95519.0,95518.0,0.413167]
[1733256032848,0.05246015,95519.0,95518.0,4e-05]
[1733256033348,0.052331,95511.0,95510.0,0.3608]
[1733256033549,0.188851,95511.0,95510.0,0.3608]
[1733256035451,0.189851,95511.0,95510.0,0.3608]
[1733256037251,0.052332,95510.0,95509.0,0.00012415]
[1733256037448,0.052339,95496.0,95495.0,0.0105]
[1733256037648,0.052339,95496.0,95485.0,0.3608]
[1733256037649,0.13652,95496.0,95485.0,0.3608]
[1733256037850,0.72224266,95495.0,95485.0,0.3608]
[1733256038253,0.052345,95486.0,95485.0,0.3608]
[1733256038562,0.052345,95486.0,95473.0,1.50056]
[1733256038563,0.052347,95482.0,95473.0,1.50056]
[1733256038760,0.13652,95486.0,95473.0,1.5]
[1733256039058,0.052346,95484.0,95478.0,0.052349]
[1733256039259,0.13652,95486.0,95473.0,1.50056]
[1733256039461,0.052347,95483.0,95477.0,0.05235]
[1733256039760,0.052348,95481.0,95477.0,0.05235]
[1733256040063,0.13652,95480.0,95477.0,0.05235]
[1733256040653,0.13652,95480.0,95478.0,0.005]
[1733256041563,0.13652,95480.0,95477.0,0.06635]
[1733256041856,0.13652,95480.0,95477.0,0.014]
[1733256042057,0.052349,95478.0,95477.0,0.014]
[1733256042261,0.052349,95478.0,95470.0,0.00012094]
[1733256042262,0.052353,95471.0,95470.0,0.00012094]
[1733256042453,0.584873,95471.0,95470.0,0.00012094]
[1733256042855,0.615873,95471.0,95470.0,0.00012094]
[1733256044653,0.619873,95471.0,95470.0,0.00912094]
[1733256045257,0.618873,95471.0,95470.0,0.00012094]
[1733256045460,0.657473,95471.0,95470.0,0.00112094]
[1733256045663,0.40608,95471.0,95470.0,0.00112094]
[1733256045961,0.54256,95471.0,95470.0,0.00112094]
[1733256046363,0.40608,95471.0,95470.0,0.00112094]
[1733256046555,0.54256,95471.0,95470.0,0.00112094]